Cogmind - Beta 17 @@@ ROGUE MODE // 2026.06.28 @ 23:49:05 Player: Nalesnig Result: Destroyed by C-40 Crusher with Compactor Performance ------------- Evolutions (4) 2000 Regions Visited (10) 2000 Robots Destroyed (225) 1125 Value Destroyed (8442) 8442 Prototype IDs (29) 580 Alien Tech Used (0) 0 Bonus (2629) 2629 TOTAL SCORE: 16776 Bonus ------- High Alert Combat Kills 2156 Follower Combat Kills 234 Met Data Miner 300 Friendly Fire -61 Cogmind --------- Core Integrity 0/850 Matter 136/300 Energy 100/100 System Corruption 13% Temperature Cool (0) Movement Core (50) Location -6/Waste Parts ------- > --- POWER (1) -------- (None) > --- PROPULSION (4) --- (None) > --- UTILITY (5) ------ (None) > --- WEAPON (5) ------- (None) > --- INVENTORY (5) ---- Experimental Terrain Scan Processor Advanced Dynamic Insulation System Precision Phase Gun Improved KE Penetrator Heavy Proton Missile Launcher Peak State ------------ > --- POWER ------------ Cooled Fission Core > --- PROPULSION ------- Light Treads Medium Treads Medium Treads Medium Treads > --- UTILITY ---------- Advanced Heat Sink High-capacity Storage Unit Improved Energy Well Hardened Medium Armor Plating Improved Medium Armor Plating > --- WEAPON ----------- Thermic Laser Heavy Gatling Laser Advanced Assault Cannon Antimatter Cannon Heavy Proton Missile Launcher > --- INVENTORY -------- Cooled Fission Core Experimental Terrain Scanner Experimental Terrain Scan Processor Improved Light Armor Plating Advanced Dynamic Insulation System Heart of Steel Precision Phase Gun Precision Phase Gun Precision Phase Gun Precision Phase Gun Improved KE Penetrator Advanced KE Penetrator Advanced KE Penetrator Advanced KE Penetrator Neutron Missile Launcher Impact Mace PL-3XN's Ring of Power [Rating: 83] Favorites ----------- Power Cooled Fission Core Engine Improved Deuterium Engine Power Core Cooled Fission Core Reactor Light Antimatter Reactor Propulsion Light Treads Treads Light Treads Leg Carbon-fiber Leg Wheel Wheel Utility High-capacity Storage Unit Device Seismic Detector Storage High-capacity Storage Unit Processor Improved Signal Interpreter Protection Improved Light Armor Plating Weapon Minigun Energy Gun Heavy Gatling Laser Energy Cannon Heavy Particle Cannon Ballistic Gun Minigun Ballistic Cannon Advanced Assault Cannon Launcher Neutron Missile Launcher Impact Weapon Impact Mace Slashing Weapon Blade Saw Build | -11 -10 -10 -8 -7 -7 -7 -7 -6 -6 -6 ------- Run | Yrd Mat Sub Mat Fac Low Low Dat Pro Fac Was Slots Evolved 8 | . . . 4 2 . . . . 2 . Power . | . . . . . . . . . . . Propulsion 2 | . . . 1 1 . . . . . . Utility 3 | . . . 2 1 . . . . . . Weapon 3 | . . . 1 . . . . . 2 . Parts Attached 131 | 7 3 5 28 49 4 4 . 7 22 2 Power 14 | 1 1 1 2 6 . . . . 3 . Engine 9 | 1 1 . 1 5 . . . . 1 . Core 4 | . . 1 1 1 . . . . 1 . Reactor 1 | . . . . . . . . . 1 . Propulsion 36 | 2 1 2 7 14 1 2 . . 7 . Treads 24 | 2 . 2 1 13 1 2 . . 3 . Leg 5 | . . . 3 . . . . . 2 . Wheel 7 | . 1 . 3 1 . . . . 2 . Hover . | . . . . . . . . . . . Flight . | . . . . . . . . . . . Utility 38 | 2 1 . 8 13 3 2 . 3 5 1 Device 18 | 1 . . 4 5 3 1 . 1 2 1 Storage 4 | 1 1 . 1 . . . . 1 . . Processor 4 | . . . . 2 . . . . 2 . Hackware . | . . . . . . . . . . . Protection 12 | . . . 3 6 . 1 . 1 1 . Artifact . | . . . . . . . . . . . Weapon 43 | 2 . 2 11 16 . . . 4 7 1 Energy Gun 10 | . . . . 4 . . . 2 3 1 Energy Cannon 3 | . . . 1 2 . . . . . . Ballistic Gun 18 | 2 . 1 9 2 . . . 2 2 . Ballistic Cannon 4 | . . . . 2 . . . . 2 . Launcher 4 | . . 1 . 3 . . . . . . Special Weapon . | . . . . . . . . . . . Impact Weapon 3 | . . . 1 2 . . . . . . Slashing Weapon 1 | . . . . 1 . . . . . . Piercing Weapon . | . . . . . . . . . . . Special Melee Weapon . | . . . . . . . . . . . Unidentified Prototypes 19 | . . . 1 10 . . . 6 1 1 Corrupted Parts 5 | . . . 4 . . . . . 1 . System Corruption 24 | . . . 21 . . . . . 3 . Parts Lost 66 | . 4 3 6 18 1 4 . 1 25 4 Power 8 | . 2 . 1 1 . . . . 3 1 Propulsion 22 | . 1 1 3 6 . 2 . . 8 1 Utility 19 | . 1 . 1 6 1 2 . 1 6 1 Weapon 17 | . . 2 1 5 . . . . 8 1 Highest Loss Streak 7 | . 2 2 3 3 1 2 . 1 7 3 To Critical Strikes 1 | . . . . . . . . . 1 . Average Backups 15 | 3 6 8 10 19 16 15 16 15 14 7 Power . | . . . . . 1 1 1 1 . . Propulsion 1 | 1 2 2 . 1 2 1 1 1 . . Utility 3 | . . 1 2 3 3 2 3 2 3 2 Weapon 9 | . 2 4 7 12 9 9 10 10 8 4 Tool/Special . | . . . . . . . . . . . Unused Backups 21 | . 2 . 3 8 . . . 4 3 1 Power 1 | . . . . 1 . . . . . . Propulsion 3 | . 2 . . . . . . . 1 . Utility 5 | . . . . 3 . . . . 1 1 Weapon 12 | . . . 3 4 . . . 4 1 . Tool/Special . | . . . . . . . . . . . Average Slot Usage (%) 92 | . 94 79 93 97 99 98 77 95 82 49 Engine 3 | . 12 . 4 5 . . . . . . Core 3 | . . 10 3 1 7 7 7 7 4 . Treads 23 | . 26 23 3 27 30 29 30 30 18 . Leg 1 | . . . 12 . . . . . 1 11 Wheel 2 | . 1 3 10 2 . . . . . 5 Device 11 | . 10 . 12 12 13 22 23 11 5 4 Storage 8 | . 14 14 9 7 7 7 7 9 8 5 Processor 3 | . . . . 6 1 . . . 3 6 Protection 8 | . . . 10 8 15 6 7 14 8 . Energy Gun 3 | . . . . 3 . . . 2 9 9 Energy Cannon 1 | . . . 2 3 . . . . . . Ballistic Gun 12 | . 28 24 22 12 14 15 1 7 1 . Ballistic Cannon 3 | . . . . 1 7 6 . 8 10 . Impact Weapon 1 | . . . 2 . . . . . 4 . Peak Build Rating 83 | 7 7 9 29 61 56 60 60 72 83 71 Average Rating 45 | 5 6 8 21 42 54 58 48 60 70 58 On Entrance 34 | . 7 6 8 27 50 56 60 60 69 41 Avg Prop Armor Cover (%) 10 | . 14 14 9 9 . . . . 18 14 Naked Turns . | . . . . . . . . . . . Heaviest Build 106 | 12 17 17 69 84 90 90 83 91 106 74 Greatest Support 104 | 40 40 40 20 96 88 96 96 96 104 10 Greatest Overweight (x) 24 | 2 1 1 9 6 1 1 . . 24 7 Average Overweight (x) . | . . . 2 . . . . . . 2 Largest Inventory Capacity 20 | 8 10 10 20 20 20 20 20 20 20 20 Average Capacity 18 | 7 9 10 12 20 20 20 20 20 20 17 Most Carried 20 | 4 10 10 20 20 20 20 20 20 20 13 Average Carried 16 | 3 6 8 10 19 18 18 19 18 17 8 Final Capacity 20 | 8 10 10 20 20 20 20 20 20 20 5 Final Carried 20 | 4 10 8 20 18 20 18 18 20 13 5 Class Distribution -------------------- 37% | Scavenger-Tank 33% | Tank 13% | Mutant 11% | Scavenger-Mutant 3% | Skirmisher Dominant Class ---------------- Mutant | -10/Materials Scavenger-Mutant | -10/Subcaves Scavenger-Tank | -8/Materials Scavenger-Tank | -7/Factory Tank | -7/Lower Caves Tank | -7/Lower Caves Mutant | -7/Data Miner Tank | -6/Proximity Caves Tank | -6/Factory Scavenger-Mutant | -6/Waste Resources | -11 -10 -10 -8 -7 -7 -7 -7 -6 -6 -6 ----------- Run | Yrd Mat Sub Mat Fac Low Low Dat Pro Fac Was Matter Collected 6589 | 185 301 24 884 2300 303 525 . 389 1678 . Remotely . | . . . . . . . . . . . Salvage Created 9091 | 31 314 49 1251 3492 177 266 . 335 3176 . Parts 432 | 4 23 2 63 174 14 10 . 7 135 . Haulers Intercepted 9 | . 1 . 1 5 . . . . 2 . Recyclers Shooed 7 | . . . 1 . . . . . 6 . Parts Field Recycled . | . . . . . . . . . . . Retrieved Matter . | . . . . . . . . . . . Parts Self-Destructed 37 | . . . . . 21 10 . 6 . . Prevented 2 | . . . . . . . . 2 . . Parts Restored . | . . . . . . . . . . . Kills | -11 -10 -10 -8 -7 -7 -7 -7 -6 -6 -6 ------- Run | Yrd Mat Sub Mat Fac Low Low Dat Pro Fac Was Combat Hostiles Destroyed 163 | . 7 3 21 65 4 7 . 5 51 . Guns 99 | . 7 . 17 41 3 1 . 3 27 . Cannons 40 | . . . 4 13 1 6 . . 16 . AOE 19 | . . 3 . 8 . . . 1 7 . Classes Destroyed 21 | 1 6 . 4 7 1 1 . . 1 . Worker 19 | . . . 1 6 . . . . 12 . Builder 9 | . . . 1 2 . . . . 6 . Tunneler 4 | 2 . . 1 . . . . . 1 . Hauler 9 | . 1 . 1 5 . . . . 2 . Recycler 10 | . . . 2 3 . . . . 5 . Minesweeper 1 | . . . . . 1 . . . . . Mechanic 5 | . . . . 2 . . . . 3 . Operator 2 | . 1 . . . . . . . 1 . Watcher 3 | . 1 . . 1 . . . . 1 . Swarmer 25 | . 3 . . 9 . . . 3 10 . Grunt 83 | . 2 . 17 31 2 7 . . 24 . Brawler 4 | . . . . 3 . . . . 1 . Duelist 3 | . . . . 1 . . . . 2 . Sentry 20 | . . . 4 7 1 . . 1 7 . Specialist 1 | . . . . 1 . . . . . . Hunter 5 | . . . . 2 . . . 1 2 . Programmer 15 | . . . . 10 1 . . . 4 . Heavy 1 | . . . . 1 . . . . . . Behemoth 1 | . . . . . . . . . 1 . Subdweller 5 | . 2 3 . . . . . . . . Tinkerer 1 | . . . . . . 1 . . . . Best Kill Streak 11 | 2 3 3 4 9 2 3 . 2 11 . Combat Bots Only 7 | . 3 3 4 6 2 3 . 2 7 . Max Kills in Single Turn 4 | 1 1 1 2 2 1 1 . 1 4 . Gunslinging 1 | . . . . 1 . . . . . . Exploded 2 | . . 1 . 2 . . . 1 2 . Melee . | . . . . . . . . . . . Uniques/NPCs Destroyed . | . . . . . . . . . . . Combat | -11 -10 -10 -8 -7 -7 -7 -7 -6 -6 -6 -------- Run | Yrd Mat Sub Mat Fac Low Low Dat Pro Fac Was Hostile Shots Fired 1263 | . 56 13 106 391 34 69 . 43 546 5 Missed 401 | . 18 8 23 114 15 3 . 18 202 . Hits 862 | . 38 5 83 277 19 66 . 25 344 5 Melee 12 | . . . . 1 . . . . 6 5 Projectile 850 | . 38 5 83 276 19 66 . 25 338 . AOE 3 | . 3 . . . . . . . . . Critical Strikes 28 | . . . 5 6 . 2 . . 10 5 Actively Blocked 1 | . . . 1 . . . . . . . Damage Taken 12442 | . 636 136 1325 3965 179 886 . 301 4789 225 Core 1655 | . 75 29 159 376 . 110 . 39 789 78 Absorbed by Shields 292 | . . . . . 38 209 . 45 . . Redirected to Shielding 22 | . . . 22 . . . . . . . Core Remaining (%) 63 | 100 . 58 71 . . . . 25 . . Volleys Fired 538 | 5 44 9 76 178 10 28 . 10 142 36 Largest 4 | 2 2 1 3 3 3 3 . 3 4 2 Hottest 258 | 40 40 30 108 161 80 80 . 80 258 188 Shots Fired 1303 | 10 88 9 200 493 29 73 . 23 341 37 Gun 923 | 10 88 . 167 366 19 45 . 13 178 37 Cannon 339 | . . . 31 115 10 28 . 6 149 . Launcher 41 | . . 9 2 12 . . . 4 14 . Special . | . . . . . . . . . . . Kinetic 961 | 10 88 . 167 349 29 73 . 19 226 . Thermal 284 | . . . 31 115 . . . . 101 37 Explosive 20 | . . 9 2 4 . . . . 5 . Electromagnetic 38 | . . . . 25 . . . 4 9 . Robot Hit Streak 17 | 5 17 4 11 12 9 13 . 6 12 14 Robot Miss Streak 7 | 2 3 1 4 6 3 4 . 3 7 1 Penetration Max 1 | . . . . . . . . . 1 . Secondary Targets 10 | . 1 . 1 6 . . . . 2 . Max Gunslinging Chain 1 | . 1 . 1 1 . . . . 1 . Shots Hit Robots 854 | 6 61 6 135 323 20 57 . 14 226 6 Core Hits 441 | 2 20 7 55 181 9 14 . 7 146 . Critical Kills 4 | . . . . 1 1 . . . 2 . Critical Parts Destroyed 9 | . . . . 2 . . . . 7 . Critical Strikes 37 | . . . . 10 2 3 . . 22 . Burn 8 | . . . . 4 . . . . 4 . Destroy 11 | . . . . 1 1 . . . 9 . Blast 13 | . . . . 3 1 3 . . 6 . Smash 5 | . . . . 2 . . . . 3 . Melee Attacks 80 | . . . 13 32 . 14 . 2 19 . Impact 75 | . . . 13 27 . 14 . 2 19 . Slashing 5 | . . . . 5 . . . . . . Piercing . | . . . . . . . . . . . Sneak Attacks 5 | . . . 1 . . 1 . . 3 . Combat Hostiles . | . . . . . . . . . . . Follow-up Attacks . | . . . . . . . . . . . Damage Inflicted 25658 | 63 684 436 2467 8574 459 1799 . 516 10489 171 Guns 12167 | 63 684 . 1735 4382 315 751 . 133 3933 171 Cannons 6123 | . . . 603 1850 144 628 . 45 2853 . Explosions 5597 | . . 436 38 1827 . . . 188 3108 . Melee 1766 | . . . 91 510 . 420 . 150 595 . Ramming 5 | . . . . 5 . . . . . . Kinetic 13071 | 63 684 . 1735 4281 459 1379 . 178 4292 . Thermal 6546 | . . . 603 2465 . . . . 3307 171 Explosive 2370 | . . 436 38 420 . . . . 1476 . Electromagnetic 1900 | . . . . 893 . . . 188 819 . Impact 1766 | . . . 91 510 . 420 . 150 595 . Slashing . | . . . . . . . . . . . Piercing . | . . . . . . . . . . . Highest Corruption 23 | . 1 1 23 9 9 9 9 9 13 13 Average Corruption 6 | . 1 1 2 5 9 9 9 9 6 13 Corruption Purged . | . . . . . . . . . . . Corruption Blocked . | . . . . . . . . . . . Effects 219 | . 6 1 9 100 20 26 4 22 20 11 Message Errors 46 | . 2 . 1 23 5 2 . 4 4 5 Matter Fused 49 | . 1 . 3 23 5 5 2 8 1 1 Heat Flow Errors 29 | . . . 1 11 5 7 . 2 1 2 Energy Discharges 28 | . 3 . 2 15 . 3 1 2 2 . Parts Rejected 6 | . . 1 . 2 . . . 1 2 . Parts Fused 1 | . . . . 1 . . . . . . Data Loss (minor) 23 | . . . . 7 2 3 1 3 5 2 Data Loss (major) 14 | . . . 2 5 2 2 . 1 2 . Misfires 7 | . . . . 5 . 1 . 1 . . Alerts 5 | . . . . 4 . 1 . . . . Misdirections 1 | . . . . . . . . . 1 . Weapon Failures 10 | . . . . 4 1 2 . . 2 1 Overload Shots . | . . . . . . . . . . . Overflow Damage 1386 | . . . . 420 1 422 . 65 478 . Projectiles 95 | . . . . 26 1 37 . . 31 . Explosions 625 | . . . . 261 . . . . 364 . Melee 666 | . . . . 133 . 385 . 65 83 . Knockbacks 43 | . . . . 13 2 10 . 1 17 . Impact 7 | . . . . 5 . 1 . . 1 . Kinetic 32 | . . . . 7 1 8 . 1 15 . Secondary 4 | . . . . 1 1 1 . . 1 . Self-Inflicted Damage 313 | . . 24 . 82 . . . . 207 . Shots 10 | . . 2 . 3 . . . . 5 . Rammed 4 | . . . . 4 . . . . . . Targets Rammed 4 | . . . . 4 . . . . . . Kicked . | . . . . . . . . . . . Crushed . | . . . . . . . . . . . Highest Temperature 398 | . 37 . 271 398 220 335 . 183 351 330 Average Temperature 103 | . 15 . 119 106 66 134 . 81 76 133 Received Heat Transfer 3932 | . 156 36 747 1044 53 486 . 63 1347 . Effects 13 | . . . 6 3 . 1 . . 3 . Energy Bleed 2 | . . . 1 1 . . . . . . Interference 10 | . . . 5 1 . 1 . . 3 . Short Circuit 1 | . . . . 1 . . . . . . Siege Activations . | . . . . . . . . . . . Martial Activations . | . . . . . . . . . . . Shielding Activations . | . . . . . . . . . . . Robots Disrupted 2 | . . . . 2 . . . . . . Combat Hostiles 2 | . . . . 2 . . . . . . Robots Corrupted 9 | . . . . 3 . 1 . 2 3 . Combat Hostiles 4 | . . . . 2 . . . 1 1 . Parts Fried 17 | . . . . 8 . . . 2 7 . Impact Corruptions 24 | . . . . 9 . 6 . 5 4 . Robots Melted 1 | . . . . 1 . . . . . . Combat Hostiles 1 | . . . . 1 . . . . . . Parts Melted 16 | . . . 2 9 . . . . 5 . Heat Transferred 9924 | . . . 962 3817 . . . . 4923 222 Parts Sabotaged 3 | . . . . . . . . . 3 . Parts Stolen . | . . . . . . . . . . . Parts Stripped . | . . . . . . . . . . . Power Chain Reactions 3 | . . . . 1 . . . . 2 . Alert | -11 -10 -10 -8 -7 -7 -7 -7 -6 -6 -6 ------- Run | Yrd Mat Sub Mat Fac Low Low Dat Pro Fac Was Maximum Alert Level 5 | . . . 1 4 . . . . 5 2 Low Security (%) 52 | 100 100 . 97 47 . . . . 28 . Level 1 7 | . . . 2 9 . . . . 9 . Level 2 12 | . . . . 12 . . . . 10 100 Level 3 13 | . . . . 19 . . . . 13 . Level 4 11 | . . . . 10 . . . . 26 . Level 5 2 | . . . . . . . . . 11 . High Security . | . . . . . . . . . . . Max Security . | . . . . . . . . . . . Peak Influence 1662 | 10 60 . 209 1448 . . . . 1662 568 Initial 568 | . . . . 91 . . . . 6 568 Average 415 | . 9 . 57 427 . . . . 732 505 Influence Increases 5951 | 10 149 . 658 2253 95 190 . 180 2410 6 Destroy 0b10 Robot/C 3300 | . 100 . 420 1300 80 140 . 120 1140 . Destroy 0b10 Robot/NC 325 | 10 15 . 30 95 5 . . 5 165 . Destroy Leader 784 | . 24 . 92 330 10 20 . 20 288 . Allied During Kill 100 | . . . . 2 . . . 35 63 . Successful Hack 68 | . 10 . 12 32 . . . . 14 . Select Force Hacks 90 | . . . 60 30 . . . . . . Disable Machine 495 | . . . . 120 . . . . 375 . Destroy Structure 354 | . . . 29 89 . . . . 230 6 Partial Spotted 15 | . . . . 15 . . . . . . Lose Combat Pursuer 420 | . . . 15 240 . 30 . . 135 . Influence Decreases 5537 | 10 143 6 455 1008 801 532 400 170 795 1217 Entered New Map 2256 | . . 4 . 112 537 142 400 . 4 1057 Time Decay 2648 | 10 123 . 364 736 254 350 . 170 521 120 Lost Part 574 | . 20 2 52 160 10 40 . . 250 40 Lost Ally 20 | . . . . . . . . . 20 . Purge Threat 39 | . . . 39 . . . . . . . Squads Dispatched 46 | . 2 . 3 23 . . . . 18 . Investigation 7 | . . . 3 2 . . . . 2 . Extermination 9 | . . . . 7 . . . . 2 . Reinforcement 17 | . 2 . . 10 . . . . 5 . Assault 8 | . . . . 4 . . . . 4 . Garrison 5 | . . . . . . . . . 5 . Intercept . | . . . . . . . . . . . Searches Triggered . | . . . . . . . . . . . Data Miner Redirects 3 | . . . . . . . . . 3 . Construction Impeded 4 | . . . . . . . . . 4 . Haulers Reinforced 2 | . . . . 2 . . . . . . Active Scanning Responses . | . . . . . . . . . . . Cargo Convoy Interrupts 1 | . . . . 1 . . . . . . Stealth | -11 -10 -10 -8 -7 -7 -7 -7 -6 -6 -6 --------- Run | Yrd Mat Sub Mat Fac Low Low Dat Pro Fac Was Distress Signals 16 | . 1 . 1 6 . . . . 8 . Communications Jammed . | . . . . . . . . . . . Distress Signals . | . . . . . . . . . . . Times Spotted 292 | . 18 5 29 129 5 9 . 9 84 4 Peak Tracking Total 8 | . 4 2 6 6 3 4 . 3 8 4 Tactical Retreats 18 | . . . 1 9 . 2 . . 6 . Traps | -11 -10 -10 -8 -7 -7 -7 -7 -6 -6 -6 ------- Run | Yrd Mat Sub Mat Fac Low Low Dat Pro Fac Was Traps Triggered 8 | . 1 . 2 4 . . . . 1 . Indirectly . | . . . . . . . . . . . Trap Hack Attempts . | . . . . . . . . . . . Triggered . | . . . . . . . . . . . Disarmed . | . . . . . . . . . . . Reprogrammed . | . . . . . . . . . . . Reused . | . . . . . . . . . . . Traps Extracted . | . . . . . . . . . . . Installed . | . . . . . . . . . . . Triggered . | . . . . . . . . . . . Machines | -11 -10 -10 -8 -7 -7 -7 -7 -6 -6 -6 ---------- Run | Yrd Mat Sub Mat Fac Low Low Dat Pro Fac Was Machines Disabled 34 | . . . . 8 . 1 . . 25 . Max in Single Turn 11 | . . . . 4 . 1 . . 11 . Garrison Access 5 | . . . 1 2 . . . . 2 . Machines Repaired . | . . . . . . . . . . . Machines Dismantled . | . . . . . . . . . . . Machines Sabotaged . | . . . . . . . . . . . Overloaded Fab Kills . | . . . . . . . . . . . Hacking | -11 -10 -10 -8 -7 -7 -7 -7 -6 -6 -6 --------- Run | Yrd Mat Sub Mat Fac Low Low Dat Pro Fac Was Machines Accessed 40 | . 4 . 7 13 2 . 4 . 10 . Terminals 18 | . 4 . 4 6 . . . . 4 . Fabricators 2 | . . . . 1 . . . . 1 . Repair Stations . | . . . . . . . . . . . Recycling Units 6 | . . . 2 2 . . . . 2 . Scanalyzers 3 | . . . . 2 . . . . 1 . Garrison Access 5 | . . . 1 2 . . . . 2 . Total Hacks 119 | . 16 . 20 26 2 . 29 . 26 . Successful 63 | . 5 . 7 11 2 . 29 . 9 . Failed 55 | . 11 . 13 14 . . . . 17 . Catastrophic 6 | . 1 . 2 2 . . . . 1 . Database Lockouts 1 | . . . . 1 . . . . . . Manual 43 | . 9 . 13 12 . . . . 9 . Terminals 48 | . 16 . 12 8 . . . . 12 . Fabricators 4 | . . . . 2 . . . . 2 . Repair Stations . | . . . . . . . . . . . Recycling Units 18 | . . . 7 5 . . . . 6 . Scanalyzers 11 | . . . . 8 . . . . 3 . Garrison Access 7 | . . . 1 3 . . . . 3 . Terminal Hacks 38 | . 3 . 2 2 2 . 29 . . . Record 11 | . . . . . . . 11 . . . Part Schematic 11 | . 1 . . . . . 10 . . . Robot Schematic 5 | . . . . . . . 5 . . . Robot Analysis 1 | . 1 . . . . . . . . . Prototype ID Bank 3 | . . . . . . . 3 . . . Open Door 2 | . . . . . 2 . . . . . Branch Access Points 2 | . . . 1 1 . . . . . . Alert Level 1 | . . . . 1 . . . . . . Unreport Threat 1 | . . . 1 . . . . . . . Zone Layout 1 | . 1 . . . . . . . . . Fabricator Hacks 1 | . . . . 1 . . . . . . Network Status 1 | . . . . 1 . . . . . . Repair Station Hacks . | . . . . . . . . . . . Recycling Unit Hacks 3 | . . . . . . . . . 3 . Retrieve Components 3 | . . . . . . . . . 3 . Scanalyzer 5 | . . . . 4 . . . . 1 . Retrieve Study 5 | . . . . 4 . . . . 1 . Garrison Access Hacks 5 | . . . 1 2 . . . . 2 . Seal Access 5 | . . . 1 2 . . . . 2 . Unauthorized Hacks 11 | . 2 . 4 2 . . . . 3 . Terminals 8 | . 2 . 2 1 . . . . 3 . Botnet 8 | . 2 . 2 1 . . . . 3 . Fabricators . | . . . . . . . . . . . Repair Stations . | . . . . . . . . . . . Recycling Units 3 | . . . 2 1 . . . . . . Tunnel 3 | . . . 2 1 . . . . . . Scanalyzers . | . . . . . . . . . . . Garrison Access . | . . . . . . . . . . . Data Cores Recovered 1 | . . . . . . . . . 1 . Used . | . . . . . . . . . . . Hacking Detections 28 | . 4 . 6 9 . . . . 9 . Full Trace Events 3 | . . . . 1 . . . . 2 . Feedback Events . | . . . . . . . . . . . Feedback Blocked . | . . . . . . . . . . . Robot Schematics Acquired 5 | . . . . . . . 5 . . . Robots Built . | . . . . . . . . . . . Authchips . | . . . . . . . . . . . Time . | . . . . . . . . . . . Total Robot Build Rating . | . . . . . . . . . . . Part Schematics Acquired 11 | . 1 . . . . . 10 . . . Parts Built . | . . . . . . . . . . . Authchips . | . . . . . . . . . . . Time . | . . . . . . . . . . . Total Part Build Rating . | . . . . . . . . . . . Part Studies Acquired 5 | . . . . 4 . . . . 1 . Parts Repaired . | . . . . . . . . . . . Time . | . . . . . . . . . . . Parts Recycled . | . . . . . . . . . . . Recycled Matter . | . . . . . . . . . . . Retrieved Matter . | . . . . . . . . . . . Retrieved Components . | . . . . . . . . . . . Parts Scanalyzed . | . . . . . . . . . . . Part Schematics Acquired . | . . . . . . . . . . . Parts Damaged . | . . . . . . . . . . . Bothacking | -11 -10 -10 -8 -7 -7 -7 -7 -6 -6 -6 ------------ Run | Yrd Mat Sub Mat Fac Low Low Dat Pro Fac Was Used RIF Installer . | . . . . . . . . . . . Robots Hacked . | . . . . . . . . . . . Non-combat . | . . . . . . . . . . . Combat . | . . . . . . . . . . . Robot Hacks Applied . | . . . . . . . . . . . Relay Couplers Released 4 | . . . 3 1 . . . . . . Machine Destruction 4 | . . . 3 1 . . . . . . Fabnet Peak Effective % . | . . . . . . . . . . . Robots Rewired 1 | . . . . 1 . . . . . . Allies Hacked . | . . . . . . . . . . . Hacks Repelled . | . . . . . . . . . . . Allies | -11 -10 -10 -8 -7 -7 -7 -7 -6 -6 -6 -------- Run | Yrd Mat Sub Mat Fac Low Low Dat Pro Fac Was Total Allies 2 | . . . . 1 . . . 1 . . Largest Group 1 | . . . . 1 . . . 1 1 . Highest-Rated Group 96 | . . . . 32 . . . 96 96 . Highest-Rated Ally 96 | . . . . 32 . . . 96 96 . Total Orders . | . . . . . . . . . . . Ally Attacks 31 | . . . . 1 . . . 10 20 . Total Damage 1092 | . . . . 12 . . . 233 847 . Kills 9 | . . . . . . . . 1 8 . Allies Corrupted . | . . . . . . . . . . . Allies Melted . | . . . . . . . . . . . Intel | -11 -10 -10 -8 -7 -7 -7 -7 -6 -6 -6 ------- Run | Yrd Mat Sub Mat Fac Low Low Dat Pro Fac Was Active Infowar (turns) 5886 | 13 623 . 560 3022 90 . . 13 1310 255 Optics 1565 | . . . . . . . . . 1310 255 Terrain 13 | . . . . . . . . 13 . . Traps 90 | . . . . . 90 . . . . . Seismic 4218 | 13 623 . 560 3022 . . . . . . Robot Analysis Total 1 | . 1 . . . . . . . . . Derelict Logs Recovered 3 | . . . . . 2 1 . . . . Drone Launches . | . . . . . . . . . . . Drone Recoveries . | . . . . . . . . . . . Exploration | -11 -10 -10 -8 -7 -7 -7 -7 -6 -6 -6 ------------- Run | Yrd Mat Sub Mat Fac Low Low Dat Pro Fac Was Turns Passed 10917 | 96 823 169 925 4492 553 787 133 687 1997 255 Spaces Moved 5217 | 45 420 94 429 2317 258 387 80 371 730 86 Core 69 | 12 . . 1 . . . . . 8 48 Treads 4091 | 33 365 81 . 1915 258 387 80 371 601 . Legs 26 | . . . . . . . . . 26 . Wheels 1031 | . 55 13 428 402 . . . . 95 38 Hover . | . . . . . . . . . . . Flight . | . . . . . . . . . . . Fastest Speed 50 | 50 95 95 110 115 162 162 162 162 115 50 Average Speed 158 | 150 151 151 126 155 192 162 162 162 184 114 Slowest Speed 1250 | 160 160 160 500 200 212 212 162 162 1250 200 Overloaded Moves . | . . . . . . . . . . . Propulsion Burnouts . | . . . . . . . . . . . Robots Hopped . | . . . . . . . . . . . Potential Cave-ins 6 | . . . . . . . . . . 6 Cave-ins Triggered . | . . . . . . . . . . . Exploration Rate (%) 41 | 5 75 10 39 60 45 52 68 46 30 21 Regions Visited 10 Branch Regions 5 Pre-discovered Areas 4 | . . . 2 1 . . 1 . . . Known Exits Taken 3 | . . . . 1 1 . . 1 . . Unknown Exits Taken 6 | 1 1 1 1 . . 1 1 . . . Scrap Searched 9 | . . . . . 2 6 . 1 . . Spaces Dug 53 | . . . 15 11 . 9 . . 7 11 Terrain Destroyed 424 | . . 35 25 113 5 16 . 1 203 26 Melee 35 | . . . 8 11 . 9 . . 7 . Projectile 115 | . . . 6 14 5 7 . 1 56 26 AOE 274 | . . 35 11 88 . . . . 140 . Terrain Rammed . | . . . . . . . . . . . Walls Destroyed . | . . . . . . . . . . . Machines Disabled . | . . . . . . . . . . . Actions | -11 -10 -10 -8 -7 -7 -7 -7 -6 -6 -6 --------- Run | Yrd Mat Sub Mat Fac Low Low Dat Pro Fac Was Total 6745 | 61 528 110 649 2834 296 469 85 445 1063 205 Wait 546 | 1 49 . 63 172 17 32 . 16 117 79 Move 5208 | 44 419 93 428 2316 257 386 79 370 730 86 Hop . | . . . . . . . . . . . Pick Up 89 | 4 10 1 22 27 3 2 . 10 10 . Fast Attach 56 | 7 . 1 11 13 1 . 1 8 14 . Attach 56 | . 2 3 5 14 2 4 2 6 16 2 Detach 13 | . . . . 3 . . 2 6 2 . Swap 80 | . 1 3 18 41 2 3 . 3 9 . Drop 73 | . 3 . 13 33 3 . 1 14 4 2 Fire 538 | 5 44 9 76 178 10 28 . 10 142 36 Melee 80 | . . . 13 32 . 14 . 2 19 . Ram . | . . . . . . . . . . . Kick . | . . . . . . . . . . . Crush 4 | . . . . 4 . . . . . . Escape Stasis . | . . . . . . . . . . . Rewire 2 | . . . . 1 1 . . . . . Trap . | . . . . . . . . . . . Miscellaneous . | . . . . . . . . . . . Route ------- -11/Scrapyard -10/Materials (discovered 5 exits: [*Mat x2] / [*Min x2] / [*Sub]) -10/Subcaves -8/Materials -7/Factory (discovered 3 exits: *Fac / *Low x2) -7/Lower Caves -7/Lower Caves (discovered 2 exits: *Fac / *Dat) -7/Data Miner -6/Proximity Caves -6/Factory -6/Waste History --------- Turn | Location | Event 21 | -11/Scrapyard | Discovered new exit (range 15) 97 | -11/Scrapyard | Entered Materials 170 | -10/Materials | Met 8R-AWN 227 | -10/Materials | Discovered new exit (range 16) 314 | -10/Materials | Build established: Mutant 332 | -10/Materials | Discovered new exit (range 6) 523 | -10/Materials | Discovered new exit (range 16) 637 | -10/Materials | Discovered new exit (range 8) 697 | -10/Materials | Derelicts attacked the area 868 | -10/Materials | Discovered new exit (range 10) 920 | -10/Materials | Entered Subcaves 1035 | -10/Subcaves | Discovered new exit (range 16) 1089 | -10/Subcaves | Entered Materials 1089 | -8/Materials | Evolved 4 slots: Propulsion x1, Utility x2, Weapon x1 1215 | -8/Materials | Lost 3 parts (3n) 1515 | -8/Materials | Build established: Scavenger-Tank 1897 | -8/Materials | Discovered new exit (range 10) 2009 | -8/Materials | System corruption reached 10% 2014 | -8/Materials | Entered Factory 2014 | -7/Factory | Evolved 2 slots: Propulsion x1, Utility x1 2347 | -7/Factory | Discovered new exit (range 16) 2520 | -7/Factory | Identified exit to Factory 2829 | -7/Factory | Lost 3 parts (1p2u) 3035 | -7/Factory | Allied Derelicts emerged from ambush trap array 3102 | -7/Factory | Cargo convoy interrupted 3824 | -7/Factory | Build established: Scavenger-Mutant 4166 | -7/Factory | Central database locked down 4416 | -7/Factory | Build established: Scavenger-Tank 5614 | -7/Factory | First assault squad dispatched 5736 | -7/Factory | Found PL-3XN's Ring of Power 5782 | -7/Factory | Found Prototype Processor 5782 | -7/Factory | Identified Exp. Terrain Scan Processor 5791 | -7/Factory | Found Exp. Terrain Scan Processor 6047 | -7/Factory | Discovered new exit (range 4) 6074 | -7/Factory | Identified exit to Lower Caves 6092 | -7/Factory | Lost 3 parts (2n1u) 6196 | -7/Factory | Core integrity fell below 50% 6429 | -7/Factory | Build established: Tank 6506 | -7/Factory | Entered Lower Caves 6571 | -7/Lower Caves | Learned Factory terminal intel 6775 | -7/Lower Caves | Identified exit to Lower Caves 6804 | -7/Lower Caves | Found Prototype Device 6871 | -7/Lower Caves | Attracted the attention of an 0b10 checkpoint 7059 | -7/Lower Caves | Entered another Lower Caves area 7059 | -7/Lower Caves | Discovered exit to Factory (range 8) 7303 | -7/Lower Caves | Learned Factory trap positions 7652 | -7/Lower Caves | Discovered new exit (range 15) 7846 | -7/Lower Caves | Entered Data Miner 7848 | -7/Data Miner | Discovered new exit (range 6) 7879 | -7/Data Miner | Met Data Miner 7911 | -7/Data Miner | Acquired the access code to Warlord's prototype stash 7911 | -7/Data Miner | Learned location of Section 7 (-3) 7939 | -7/Data Miner | Received God Mode back door access code from Data Miner 7979 | -7/Data Miner | Entered Proximity Caves 8027 | -6/Proximity Caves | Escorted by Enhanced Grunt 8224 | -6/Proximity Caves | Encountered a Derelict guarding a broken Freighter 8251 | -6/Proximity Caves | Received a Behemoth hack from an annoying Tinkerer 8353 | -6/Proximity Caves | Found Prototype Device 8353 | -6/Proximity Caves | Identified Exp. Terrain Scanner 8564 | -6/Proximity Caves | Attracted the attention of an 0b10 checkpoint 8658 | -6/Proximity Caves | Discovered exit to Factory (range 6) 8666 | -6/Proximity Caves | Entered Factory 8666 | -6/Factory | Accompanied by 1 ally 8666 | -6/Factory | Evolved 2 slots: Weapon x2 8667 | -6/Factory | Loaded intel: 98 trap records 8668 | -6/Factory | Loaded intel: 26 terminal locations 8849 | -6/Factory | Discovered new exit (range 15) 8959 | -6/Factory | Identified exit to Factory 9561 | -6/Factory | Garrison activated, responded to threat 9716 | -6/Factory | First assault squad dispatched 9739 | -6/Factory | Incoming assault squad redirected 9802 | -6/Factory | Incoming investigation squad redirected 9803 | -6/Factory | Spotted B-75 Beast 9852 | -6/Factory | Destroyed B-75 Beast 9882 | -6/Factory | Lost 4 parts (1p1n1u1w) 9912 | -6/Factory | Garrison activated, responded to threat 10173 | -6/Factory | Garrison activated, responded to threat 10214 | -6/Factory | System corruption reached 10% 10269 | -6/Factory | Lost 4 parts (1n3w) 10343 | -6/Factory | Lost 7 parts (2p1n2u2w) 10347 | -6/Factory | Core integrity fell below 50% 10348 | -6/Factory | Build established: Skirmisher 10370 | -6/Factory | Destroyed 7 combat bots 10433 | -6/Factory | Incoming assault squad redirected 10449 | -6/Factory | Core integrity fell below 20% 10663 | -6/Factory | Sucked down chute 10663 | -6/Factory | Entered Waste 10685 | -6/Waste | Identified Heart of Steel 10842 | -6/Waste | Build established: Scavenger-Mutant 10855 | -6/Waste | Spotted C-40 Crusher 10856 | -6/Waste | Crushed by Compactor (1 part destroyed, 1 dropped) 10875 | -6/Waste | Crushed by Compactor (1 part destroyed, 2 dropped) 10878 | -6/Waste | Spotted C-40 Crusher 10878 | -6/Waste | Spotted C-40 Crusher 10909 | -6/Waste | Lost 3 parts (1p1n1w) 10909 | -6/Waste | Spotted C-40 Crusher 10918 | -6/Waste | Crushed by Compactor (1 part destroyed) 10918 | -6/Waste | Destroyed by C-40 Crusher with Compactor Last Messages --------------- 10799_ %F%MF,P/ 10822_ System corrupted: Heat flow error (+126). 10855_ Broken Hyp. Mass Driver crushed. 10856_ F2LOMFJD3JYUQG7S2AWXNJ:, 10856_ Lgt. Antimatter Reactor crushed. 10856_ Prc. Phase Gun crushed. 10875_ Flexi-carbon Leg crushed. 10875_ Carbon-fiber Leg crushed. 10876_ System corrupted: Component data lost. 10877_ Dropped Hcp. Storage Unit. 10878_ PL-3XN's Ring of Power crushed. 10878_ Wheel+ destroyed. 10882_ Neutron Missile Launcher crushed. 10882_ Hcp. Storage Unit crushed. 10887_ Exp. Terrain Scanner crushed. 10887_ Carbon-fiber Leg crushed. 10887_ Flexi-carbon Leg crushed. 10895_ Adv. KE Penetrator crushed. 10898_ Discarded Heart of Steel. 10918_ Enh. Optical Array crushed. Map ----- +----------------------------------------------------+ | ?????????????????????????????????????????????????? | | ?????????????????????????????????????????????????? | | ?????????????????????????????????????????????????? | | ?????????????????????????????????????????????????? | | ?????????????????????????????????????????????????? | | ?????????????????????????????????????????????????? | | ?????????????????????????????????????????????????? | | ?????????????????????????????????????????????????? | | ?????????????????????????????????????????????????? | | ?????????????????????????????????????????????????? | | ?????????????????????????????????????????????????? | | ?????????????????????????????????????????????????? | | ?????????????????????????????????????????????????? | | ?????????????????????????????????????????????????? | | ????????????????????????######???????????????????? | | ??????????????????????### #???????????????????? | | ??????????############# # ###?????????????????? | | ??????????# [ ; ; #?????????????????? | | ??????????# # ## ;##?????????????????? | | ??????????# #### ##??????????????????? | | ??????????# #???????????????????? | | ??????????# CC #???????????????????? | | ??????????# ! CC #???????????????????? | | ??????????# CC #???????????????????? | | ??????????# #### CC #???????????????????? | | ??????????# #?#;@ #???????????????????? | | ??????????# #?## #???????????????????? | | ??????????##########"#??# #???????????????????? | | ???????????????????# #??# #???????????????????? | | ???????????????????# #? ??????????????????? | | ???????????????????# ##? ?????????????????? | | ???????????????????# #?? ????????????????? | | ???????????????????# #? ???????????????? | | ???????????????????# #?## ######??????????????? | | ???????????????????# #??# #???????????????????? | | ???????????????????# #??# #???????????????????? | | ???????????????????# #??# #???????????????????? | | ???????????????????# #??# #???????????????????? | | ???????????????????# #?? ???????????????????? | | ???????????????????# #?? ???????????????????? | | ???????????????????? ??? ???????????????????? | | ???????????????????? ??? ??????????????????? | | ????????????????????#???# ##??????????????????? | | ????????????????????????? #???????????????????? | | ????????????????????????? #???????????????????? | | ????????????????????????? #???????????????????? | | ????????????????????????? ?????????????????????? | | ?????????????????????????????????????????????????? | | ?????????????????????????????????????????????????? | | ?????????????????????????????????????????????????? | +----------------------------------------------------+ Best States ------------- Heat Dissipation 75 Energy Generation 21 Energy Capacity 750 Matter Stores 300 Matter Capacity 300 Sight Range 22 Terrain Scan Range 30 Terrain Scan Density 1010 EM Shielding 4 Armor Coverage 450 Power Shielding 66 Evasion (%) 50 Recoil Reduction 4 Kinecelleration 30 Item Schematics ----------------- Hcp. Storage Unit | -10/Materials | Hacked Combat Drone Bay | -7/Data Miner | Free Lgt. Regenerative Plating | -7/Data Miner | Free Cld. Aerolev Unit | -7/Data Miner | Free Gravity Neutralizer | -7/Data Miner | Free Com. Ion Cannon | -7/Data Miner | Free Nuclear Pulse Array | -7/Data Miner | Free Imp. Powered Armor | -7/Data Miner | Free Adv. Plasma Cannon | -7/Data Miner | Free Adv. Thermal Generator | -7/Data Miner | Free Cmb. Gravmag System | -7/Data Miner | Free Robot Schematics ------------------ W-25 Informer | -7/Data Miner | Free M-22 Extractor | -7/Data Miner | Free R-10 Processor | -7/Data Miner | Free S-27 Virus | -7/Data Miner | Free M-14 Sweeper | -7/Data Miner | Free Fabricated ------------ Nothing Repaired ---------- Nothing Studied --------- Wheel | -7/Factory | Hacked Minigun | -7/Factory | Hacked Arm. Treads | -7/Factory | Hacked Lgt. Treads | -7/Factory | Hacked Med. Treads | -6/Factory | Hacked Alien Tech Used ----------------- None Achievements -------------- Follow The Leader It Was An Accident, I Swear Challenges ------------ None Game ------ Seed ZipAlloyProcessor Manual? 0 Play Time 01:43:28 Cumulative 84.0 hours Start 2026.06.28 @ 13:33:41 End 2026.06.28 @ 23:49:05 Sessions 2 Manual Loads 0 Difficulty Rogue Special Mode None Game No. 83 Rogue 83 Adventurer 0 Explorer 0 Win Type - Total 2 Types 2/0/0/0/0/0/0/0/0/0 Lore% 60 Gallery% 46 Achievement% 39 Wizard Run 0 Options --------- Layout 1 ASCII 0 Keyboard 0 Movement Mouse Keybinds 0 Fullscreen 1 Font 32/SmallcapsGlow Map View 77x35 Zoom Use 0% Tactical HUD 1 Map Filters NONE Filters NONE Steam 1 RUN: 638b44fa-e79d-4054-a259-eee807e77769